[Event "Silves Open 2025"]
[Site "Fissul"]
[Date "2025.03.03"]
[Round "4.18"]
[White "Van Ree, Thailo"]
[Black "Esteves, Goncalo Maria Franco"]
[Result "1-0"]
[Annotator "TA"]
[ECO "A90"]
[WhiteElo "1881"]
[BlackElo "1962"]
[PlyCount "90"]
[EventDate "2025.03.03"]
[EventType "swiss"]
[EventCountry "POR"]
[SourceTitle "playchess.com"]
[Source "ChessBase"]
[SourceQuality "1"]
[TimeControl "5400+30"]

{[%evp 15,90,18,27,16,10,0,77,11,30,6,132,146,137,141,157,159,153,162,164,169,143,128,118,121,113,89,145,124,127,95,109,79,75,80,101,113,151,170,237,269,295,145,467,429,495,164,164,145,161,148,142,-31,-37,-113,37,26,21,25,323,0,0,0,0,0,89,0,0,0,86,54,4910,2436,29988,29989,29989,29990,29991]} 1. d4 {[%emt 0:00:30]} f5 {[%emt 0:00:15]} 2. c4 {[%emt 0:00:09]} Nf6 {[%emt 0:00:36]} 3. Nc3 {[%emt 0:00:57]} e6 {[%emt 0:00:50]} 4. Qc2 {[%emt 0:02:19]} d5 {[%emt 0:00:57]} 5. Nf3 {[%emt 0:00:17]} c6 {[%emt 0:01:34]} 6. g3 {[%emt 0:00:21]} Bd6 {[%emt 0:00:15]} 7. Bg2 {[%emt 0:00:08]} O-O {[%emt 0:00:20]} 8. O-O {[%emt 0:00:07]} Qe8 {[%emt 0:06:49]} 9. Rb1 {[%emt 0:06:22] A90: Dutch Defence: Miscellaneous and Modern Stonewall (with ...Bd6).} Nbd7 {[%emt 0:06:47]} 10. b4 {[%emt 0:03:21]} b6 $146 {[%emt 0:06:08]} (10... dxc4 $11 11. e4 e5) (10... dxc4 11. b5 Nd5 12. bxc6 bxc6 13. e4 Nb4 14. Qe2 Nb6 15. Ne5 Bxe5 16. dxe5 Nd3 {1-0 Tran,T (2491)-Noritsyn,N (2482) Olympiad-43 Batumi 2018 (7.14)}) 11. c5 {[%emt 0:14:33]} (11. cxd5 $1 $16 exd5 12. Nh4 (12. Qxf5 $2 Ne4 $19)) 11... Bc7 $11 {[%emt 0:04:48]} 12. b5 {[%emt 0:00:59]} Ne4 {[%emt 0:22:13]} (12... Bb7 $11) 13. bxc6 $16 {[%emt 0:05:26][%csl Oc6] White has a strong passed pawn} Nb8 {[%emt 0:00:35]} 14. Nb5 {[%emt 0:06:14]} Qxc6 {[%emt 0:14:35]} 15. Nxc7 $1 {[%emt 0:01:23]} Qxc7 {[%emt 0:00:01]} 16. Bf4 {[%emt 0:00:17]} Qb7 {[%emt 0:01:26]} 17. Rfc1 {[%emt 0:03:58]} Bd7 {[%emt 0:05:48]} 18. h4 {[%emt 0:18:17]} Rc8 {[%emt 0:01:55] Black is weak on the dark squares} 19. Ne5 {[%emt 0:04:48]} Be8 {[%emt 0:02:09]} 20. e3 {[%emt 0:03:50]} h6 {[%emt 0:08:36]} (20... Qe7 $142) 21. f3 {[%emt 0:03:27][%csl Oe5] Strong Square White (e5)} Nf6 {[%emt 0:00:15]} 22. g4 {[%emt 0:02:16] Against Nh5} fxg4 {[%emt 0:04:05]} 23. fxg4 {[%emt 0:00:22]} Nc6 {[%emt 0:00:21]} 24. g5 {[%emt 0:00:59]} hxg5 {[%emt 0:00:49]} 25. hxg5 {[%emt 0:00:43][%cal Bh4g5,Bg5g6][%mdl 32]} Nxe5 {[%emt 0:00:47]} 26. Bxe5 {[%emt 0:00:43] This pair of bishops is nice.} (26. gxf6 $6 Bg6 27. e4 Nc6 $16) 26... Ne4 {[%emt 0:00:32]} (26... Nh7 $142) 27. Bxe4 $18 {[%emt 0:02:18]} dxe4 {[%emt 0:00:07]} 28. Qg2 {[%emt 0:00:19]} (28. g6 $18 {and White stays clearly on top.}) 28... Bh5 $2 {[%emt 0:01:28][%mdl 8192]} (28... Qf7 $16 {is tougher.} 29. Rc2 (29. Qxe4 Bc6 $14) (29. cxb6 axb6 30. d5 Rxc1+ 31. Rxc1 Qf5 $11) 29... Qf3) 29. g6 {[%emt 0:00:36]} Qe7 {[%emt 0:00:57]} 30. c6 $2 {[%emt 0:03:53]} (30. Qxe4 Qg5+ 31. Qg2 Qxe3+ 32. Qf2 Qg5+ 33. Qg2 Qe3+ 34. Qf2 Qh6 35. Qf7+ Kh8 $14) (30. cxb6 axb6 31. Rxc8+ (31. Qxe4 Qg5+ 32. Qg2 Rxc1+ 33. Rxc1 Qxe3+ 34. Kh2 Bf3 $19) 31... Rxc8 $11) (30. Rf1 {Rf7 is the strong threat.} Rf8 31. Rxf8+ (31. cxb6 axb6 32. Rxf8+ Rxf8 $14) 31... Rxf8 32. Bd6 (32. cxb6 axb6 33. Bf4 Qf6 $14)) 30... Rf8 {[%emt 0:01:47] Counterplay White} 31. c7 $1 {[%emt 0:01:08][%cal Og2g3] White plays on the queen side and is better} (31. Qxe4 $2 Qg5+ 32. Qg2 Qxe3+ 33. Kh2 Rf2 $19) 31... Rac8 {[%emt 0:01:07]} 32. Rf1 {[%emt 0:02:35]} (32. Qxe4 $2 Bf3 $19) 32... Bf3 {[%emt 0:00:32]} 33. Qg3 {[%emt 0:00:33] Some like it hot. White is much more active.} (33. Qh3 $1 $16 {[%csl Gg6][%cal Rh3h7]} Qg5+ 34. Kh2 (34. Qg3 Qxe3+ 35. Qf2 Qh6 $19)) 33... Rf5 $15 {[%emt 0:00:36]} 34. Bf4 {[%emt 0:00:56] [#] Against Rg5} (34. Bd6 $1 $15 Rg5 35. Bxe7 Rxg3+ 36. Kh2 Rg2+ (36... Rxg6 37. Bd8 $11) 37. Kh3) 34... Rh5 {[%emt 0:00:39]} ({Black should play} 34... e5 $1 $17 {[%cal Re5f4]} 35. Qh3 (35. Bxe5 $2 Rg5 $19) 35... Qf6 36. Qh7+ (36. dxe5 Qxg6+ 37. Qg3 Qxg3+ 38. Bxg3 Rxc7 $17) 36... Kf8) 35. Rxf3 $14 {[%emt 0:00:27]} exf3 {[%emt 0:00:31]} 36. Qxf3 $40 {[%emt 0:00:10][%mdl 128] White is up to no good.} Qh4 {[%emt 0:02:07][%mdl 8192] [#]} (36... Rf5 $11 {and Black stays safe.}) 37. Qg2 $2 {[%emt 0:05:40]} (37. Qb7 $1 $18 {[%cal Rb7c8]} Qg4+ 38. Kf1 Qxg6 39. Qxc8+ Kh7 40. Qh8+ Kxh8 41. c8=Q+ Kh7 42. Rc1) 37... Qf6 {[%emt 0:03:17]} 38. Rf1 {[%emt 0:00:32]} Rf5 {[%emt 0:01:02]} 39. Rc1 {[%emt 0:02:48][%cal Bf1c1,Bc1c5,Bc5b5][%mdl 32]} Rh5 {[%emt 0:00:41]} (39... Rxf4 $11 40. exf4 Qxf4) 40. Qg3 {[%emt 0:02:57]} ({Better is} 40. Kf1 $16) 40... Qf5 $11 {[%emt 0:00:27]} 41. Qg2 {[%emt 0:00:50]} b5 {[%emt 0:00:31]} (41... Qf6 $11 {keeps the balance.}) 42. Kf2 {[%emt 0:00:45]} b4 $2 {[%emt 0:01:31][%mdl 8192]} (42... Rh4 $14 43. Ke2 Rxf4 44. exf4 Qxf4) 43. Rc5 $18 {[%emt 0:00:28]} Qh3 {[%emt 0:00:29]} 44. Qxh3 {[%emt 0:00:39]} Rxh3 {[%emt 0:00:10]} 45. Rb5 {[%emt 0:00:04]} e5 {[%emt 0:01:35] Weighted Error Value: White=0.33/Black=0.63  Loses game:     	---       	Black=3      Missed win:     	White=1     	---        Mistake:       	White=6     	Black=7      Inaccurate:     	White=1     	Black=2      OK:         	White=8     	Black=11     Best:        	White=5     	Black=3} 1-0

[Event "Silves Open 2025"]
[Site "Fissul"]
[Date "2025.03.03"]
[Round "4.20"]
[White "Esteves, Goncalo Maria Franco"]
[Black "Pena, Helio Adelino Silva"]
[Result "1-0"]
[Annotator "TA"]
[ECO "A07"]
[WhiteElo "1962"]
[BlackElo "1842"]
[PlyCount "78"]
[EventDate "2025.03.03"]
[EventType "swiss"]
[EventCountry "POR"]
[SourceTitle "playchess.com"]
[Source "ChessBase"]
[SourceQuality "1"]
[TimeControl "5400+30"]

{[%evp 9,78,0,0,-3,-4,-11,10,-11,38,43,31,26,34,0,16,-21,-24,-32,-22,-25,-33,-21,-11,-41,0,0,0,0,8,-62,174,172,173,188,174,191,172,95,100,0,84,73,62,91,161,153,175,64,62,49,54,49,51,53,42,3,3,4,33,4,37,0,0,0,0,0,131,149,145,136,1156]} 1. Nf3 {[%emt 1:31:00]} g6 {[%emt 1:31:00]} 2. g3 {[%emt 0:00:30]} Bg7 {[%emt 0:00:30]} 3. Bg2 {[%emt 0:00:30]} Nf6 {[%emt 0:00:30]} 4. O-O {[%emt 0:00:30]} O-O {[%emt 0:00:30]} 5. d3 {[%emt 0:00:30]} d5 {[%emt 0:00:30]} 6. Re1 {[%emt 0:00:30] A07: Réti Opening: New York and Capablanca Systems.} Re8 {[%emt 0:00:30]} 7. Nbd2 {[%emt 0:00:30]} d4 $146 {[%emt 0:00:30]} (7... e5 8. e4 d4 9. Nc4 Nbd7 10. a4 c6 11. Nh4 Qc7 12. f4 Nh5 13. f5 b5 14. axb5 cxb5 {1-0 Salman,P (2287)-Szente Varga,F (2085) Titled Tuesday intern op 27th Sep Early blitz 2022 (6)}) 8. c4 {[%emt 0:00:30] The position is equal.} dxc3 {[%emt 0:00:30]} (8... Nc6 $11) 9. bxc3 $14 {[%emt 0:00:30]} Nd5 {[%emt 0:00:30]} 10. Qb3 {[%emt 0:00:30]} Nxc3 {[%emt 0:00:30] [#]} 11. d4 $1 {[%emt 0:00:30] White sacrificed a pawn} Nd5 {[%emt 0:00:30]} (11... Nc6 12. Bb2) 12. e4 {[%emt 0:00:30][%mdl 1024] White has compensation.} Nb6 {[%emt 0:00:30][%cal Ob8c6]} 13. Bb2 {[%emt 0:00:30]} e6 {[%emt 0:00:30]} 14. Rad1 {[%emt 0:00:30]} Bd7 {[%emt 0:00:30]} 15. Rc1 {[%emt 0:00:30]} Bc6 {[%emt 0:00:30]} 16. Nc4 {[%emt 0:00:30]} N8d7 {[%emt 0:00:30]} 17. Na5 {[%emt 0:00:30]} Ba4 {[%emt 0:00:30]} 18. Qc3 {[%emt 0:00:30]} c5 {[%emt 0:00:30]} 19. Qa3 {[%emt 0:00:30]} (19. Nxb7 $11 cxd4 20. Nxd4) 19... Bc6 $2 (19... cxd4 $1 $15 {stays ahead.} 20. Bxd4 Bf8) 20. Nxc6 $18 (20. dxc5 Na4 21. Nxc6 Bxb2 22. Qxa4 bxc6 $16) 20... bxc6 21. dxc5 {and Bxg7 should not be overlooked} Bxb2 22. Qxb2 Na4 {[#]} 23. Qd4 (23. Qa3 $1 $18 {[%cal Ra3a4]} Ndxc5 24. Rxc5) 23... Ndxc5 $16 {[#] Hoping for ...Qxd4.} 24. Rc4 {White is more active.} ({White should try} 24. Qe3 $1 $16) 24... Qa5 (24... Qxd4 $11 25. Nxd4 Rec8) 25. Rec1 {[%cal Og2f1]} Rad8 26. Qe5 {[%cal Oh2h4]} Rd7 (26... Qb5 $16) 27. h4 (27. Rxc5 Nxc5 28. Qxc5 (28. Rxc5 $2 {too greedy.} Rd1+ 29. Bf1 Qa6 $19) 28... Qxc5 29. Rxc5 Rb8 $18) 27... h5 28. Rxc5 (28. Bf1 $18) 28... Nxc5 $14 29. Rxc5 (29. Qxc5 {simplifies} Qxc5 30. Rxc5 Rb8 31. Bf1) 29... Qxa2 30. Bf1 {[%cal Og1g2]} Rd1 $1 31. Kg2 {[%cal Oc5a5]} Qa1 32. Qxa1 Rxa1 33. Rxc6 Re7 {Repels Rc7} 34. e5 Rb7 35. Rc5 a5 36. Ng5 a4 37. Ne4 Rab1 (37... Ra7 $11 {remains equal.}) 38. Ra5 $16 Re1 39. Rxa4 Rb5 $2 {[%mdl 8192] Weighted Error Value: White=0.23 (precise) /Black=0.33  Loses game:     	---       	Black=2      Mistake:       	White=4     	Black=4      Inaccurate:     	White=6     	Black=3      OK:         	White=9     	Black=13     Best:        	White=2     	---        Strong:       	---       	Black=1} (39... Kg7 $16 40. Bd3 Rb3) 1-0

[Event "Silves Open 2025"]
[Site "Fissul"]
[Date "2025.03.03"]
[Round "4.21"]
[White "Pinho, Tiago Brandao De"]
[Black "Van Ginkel, Henk"]
[Result "1/2-1/2"]
[Annotator "TA"]
[ECO "B27"]
[WhiteElo "1919"]
[BlackElo "1811"]
[PlyCount "34"]
[EventDate "2025.03.03"]
[EventType "swiss"]
[EventCountry "POR"]
[SourceTitle "playchess.com"]
[Source "ChessBase"]
[SourceQuality "1"]
[TimeControl "5400+30"]

{[%evp 9,23,30,34,22,76,43,43,14,16,18,34,27,43,46,84,8]} 1. e4 {[%emt 0:00:06]} c5 {[%emt 0:00:29]} 2. Nc3 {[%emt 0:00:39]} g6 {[%emt 0:00:10]} 3. d4 {[%emt 0:00:09]} cxd4 {[%emt 0:00:42]} 4. Qxd4 {[%emt 0:00:07]} Nf6 {[%emt 0:00:23]} 5. Nf3 {[%emt 0:00:19]} Nc6 {[%emt 0:02:02]} 6. Qa4 {[%emt 0:00:15] and e5 should not be overlooked B27: Sicilian: 2 Nf3, unusual Black 2nd moves.} d5 {[%emt 0:15:36]} (6... d6 $1 $11 {keeps the balance.}) 7. e5 {[%emt 0:08:04] White is more active.} Ne4 {[%emt 0:10:19]} 8. Nxe4 {[%emt 0:04:00] White is slightly better.} dxe4 {[%emt 0:00:05]} 9. Qxe4 {[%emt 0:00:09]} Bg7 {[%emt 0:02:19]} 10. Bf4 {[%emt 0:04:25]} Qb6 {[%emt 0:12:51]} 11. O-O-O {[%emt 0:28:10]} Bf5 {[%emt 0:04:24]} 12. Qa4 {[%emt 0:01:38] Weighted Error Value: White=0.16 (very precise) /Black=0.23 (precise)   Mistake:       	White=1     	Black=1      Inaccurate:     	White=2     	Black=1      OK:         	---       	Black=1} (12. Qe3 $16) {Predecessor:} 12... Qxf2 $146 13. Rd2 Qb6 14. Qb5 O-O 15. Qxb6 axb6 16. a3 Ra4 17. g3 Rc8 {½-½ De Pinho,T (1921)-Van Ginkel,H (1812) Silves op 2025 (4)} 1/2-1/2

[Event "Silves Open 2025"]
[Site "Fissul"]
[Date "2025.03.03"]
[Round "4.22"]
[White "Avelino, Camila Biscaya"]
[Black "Rogge, Marloes"]
[Result "1-0"]
[Annotator "TA"]
[ECO "C41"]
[WhiteElo "1906"]
[BlackElo "1761"]
[PlyCount "46"]
[EventDate "2025.03.03"]
[EventType "swiss"]
[EventCountry "POR"]
[SourceTitle "playchess.com"]
[Source "ChessBase"]
[SourceQuality "1"]
[TimeControl "5400+30"]

{[%evp 9,46,30,35,30,58,30,35,29,35,45,61,57,84,97,80,95,99,93,96,81,145,137,141,137,145,133,181,174,172,176,201,177,195,185,182,177,222,204,229]} 1. e4 {[%emt 0:05:25]} d6 {[%emt 0:00:19]} 2. d4 {[%emt 0:00:08]} Nf6 {[%emt 0:00:16]} 3. Nc3 {[%emt 0:00:07]} e5 {[%emt 0:00:15]} 4. Nf3 {[%emt 0:00:05]} Nbd7 {[%emt 0:00:19]} 5. a4 {[%emt 0:00:16]} Be7 {[%emt 0:00:50]} 6. a5 {[%emt 0:00:46] C41: Philidor Defence.} a6 {[%emt 0:00:13]} 7. Be2 {[%emt 0:01:21]} O-O {[%emt 0:00:16]} 8. O-O {[%emt 0:01:03] White is slightly better.} c6 {[%emt 0:01:27]} 9. h3 {[%emt 0:07:27]} Qc7 {[%emt 0:00:24]} 10. Be3 {[%emt 0:04:10]} b5 $146 {[%emt 0:08:17]} (10... Re8 11. Bc4 Bf8 12. Qb1 exd4 13. Qa2 dxe3 14. Bxf7+ Kh8 15. Bxe8 Nxe8 16. Ng5 h6 {0-1 Stuchly,O (1680)-Truksa,V (1690) CZE-ch U14 Kouty nad Desnou 2012 (7)}) 11. axb6 {[%emt 0:01:29]} Nxb6 {[%emt 0:00:08]} 12. dxe5 {[%emt 0:08:13]} dxe5 {[%emt 0:01:59]} 13. Bxb6 {[%emt 0:16:44]} (13. Nxe5 {is more complex.} Qxe5 14. Bxb6 Nxe4 15. Bd4) 13... Qxb6 {[%emt 0:00:25]} 14. Nxe5 {[%emt 0:00:25]} Qxb2 {[%emt 0:02:19]} (14... Rd8 $142 15. Qc1 Qc7) 15. Nxc6 $16 {[%emt 0:00:27] White is clearly better.} Qxc3 {[%emt 0:02:48]} 16. Nxe7+ {[%emt 0:00:06]} Kh8 {[%emt 0:00:16]} 17. Nxc8 {[%emt 0:02:41]} Rfxc8 {[%emt 0:00:11]} (17... Qxc8 $16 {might work better.} 18. e5 Ne4) 18. Bxa6 $18 {[%emt 0:03:16]} Rd8 {[%emt 0:00:15]} 19. Bd3 {[%emt 0:00:12]} Rac8 {[%emt 0:01:01]} 20. Qf3 {[%emt 0:01:39]} g6 {[%emt 0:00:37]} 21. Ra7 {[%emt 0:04:02]} Kg7 {[%emt 0:00:46]} 22. Qf4 {[%emt 0:06:23] [#] and e5 should not be overlooked} Rf8 {[%emt 0:00:29]} 23. Rb1 {[%emt 0:03:18]} Nh5 {[%emt 0:02:47] Black got outplayed after the opening.   Weighted Error Value: White=0.05 (flawless) /Black=0.22 (precise)   Mistake:       	---       	Black=2      Inaccurate:     	White=1     	Black=2      OK:         	White=11    	Black=1      Best:        	White=2     	---} 1-0

[Event "Silves Open 2025"]
[Site "Fissul"]
[Date "2025.03.03"]
[Round "4.23"]
[White "Mostafa, Hazem Farouk Mahmoud"]
[Black "Adams, Philip"]
[Result "0-1"]
[Annotator "TA"]
[ECO "C02"]
[WhiteElo "1769"]
[BlackElo "1903"]
[PlyCount "45"]
[EventDate "2025.03.03"]
[EventType "swiss"]
[EventCountry "POR"]
[SourceTitle "playchess.com"]
[Source "ChessBase"]
[SourceQuality "1"]
[TimeControl "5400+30"]

{[%evp 11,45,0,0,-45,-41,-122,-102,-115,-112,-122,-117,-115,-125,-117,-125,-127,-132,-125,-129,-147,-143,-144,-119,-140,-109,-242,-239,-280,-289,-385,-378,-501,-505,-606,-603,-601]} 1. e4 {[%emt 1:31:00]} c5 2. Nf3 {[%emt 0:00:30]} e6 {[%emt 1:31:30]} 3. c3 {[%emt 0:00:30]} d5 {[%emt 0:00:30]} 4. e5 {[%emt 0:00:30]} Nc6 {[%emt 0:00:30]} 5. d4 {[%emt 0:00:30]} Nge7 {[%emt 0:00:30][%cal Bg8e7,Be7f5,Bf5h4,Bh4f3][%mdl 32]} 6. Be2 {[%emt 0:00:30]} Nf5 {[%emt 0:00:30]} 7. g4 {[%emt 0:00:30] 7.dxc5 is the modern continuation. C02: French: Advance Variation.} Nh4 {[%emt 0:00:30]} 8. O-O {[%emt 0:00:30]} (8. Nxh4 $15 Qxh4 9. Bf4) 8... Nxf3+ $17 {[%emt 0:00:30]} 9. Bxf3 {[%emt 0:00:30] [#] Black is better.} cxd4 $1 {[%emt 0:00:30]} 10. cxd4 {[%emt 0:00:30] [#]} Qb6 $1 {[%emt 0:00:30]} 11. Nc3 {[%emt 0:00:30]} Qxd4 {[%emt 0:00:30]} 12. Qxd4 $146 {[%emt 0:00:30]} (12. Nb5 Qxd1 13. Bxd1 Rb8 14. Ba4 a6 15. Nc7+ Kd7 16. Nxd5 exd5 17. Rd1 Ke6 18. f4 {0-1 Duttweiler,R-Senn,R Zuerich op-B 29th 2005 (1)}) 12... Nxd4 {[%emt 0:00:30]} 13. Bd1 {[%emt 0:00:30]} Be7 {[%emt 0:00:30]} 14. Be3 {[%emt 0:00:30]} Nc6 {[%emt 0:00:30][%cal Od5d4]} 15. Nb5 {[%emt 0:00:30] and Nc7+ would now be decisive} O-O $1 {[%emt 0:00:30][%cal Oc8d7]} (15... Nxe5 $2 16. Nc7+ (16. Bxa7 $2 {is the wrong capture.} O-O $19) 16... Kd7 17. Nxa8 $18) 16. f4 {[%emt 0:00:30]} Rd8 {[%emt 0:00:30]} 17. Bf2 {[%emt 0:00:30]} a6 {[%emt 0:00:30]} 18. Nc7 {[%emt 0:00:30]} (18. Nd4 $17) 18... Rb8 $19 {[%emt 0:00:30] ...Bd7 would now be deadly.} 19. Bb6 {[%emt 0:00:30]} Bd7 20. a3 Rdc8 21. Ba4 Bd8 22. Ba7 Nxa7 23. Bxd7 {White did not feel at home in the position after the opening.   Weighted Error Value: White=0.51/Black=0.03 (flawless)   Mistake:       	White=2     	---        Inaccurate:     	White=2     	---        OK:         	White=3     	Black=9      Best:        	---       	Black=1      Strong:       	---       	Black=3} 0-1

[Event "Silves Open 2025"]
[Site "Fissul"]
[Date "2025.03.03"]
[Round "4.24"]
[White "Sousa, Carlos Fantasia"]
[Black "Dumont, Andre"]
[Result "1-0"]
[Annotator "NA RC COMBH"]
[ECO "C30"]
[WhiteElo "1752"]
[BlackElo "1891"]
[PlyCount "43"]
[EventDate "2025.03.03"]
[EventType "swiss"]
[EventCountry "POR"]
[SourceTitle "playchess.com"]
[Source "ChessBase"]
[SourceQuality "1"]
[TimeControl "5400+30"]

1. e4 {[%emt 0:09:11]} e5 {[%emt 0:00:17]} 2. f4 {[%emt 0:00:13]} Qh4+ {[%emt 0:00:10]} 3. g3 {[%emt 0:00:11]} Qe7 {[%emt 0:00:02]} 4. d3 {[%emt 0:01:16]} exf4 {[%emt 0:00:43]} 5. Bxf4 {[%emt 0:00:46]} Qb4+ {[%emt 0:06:21]} 6. Nd2 {[%emt 0:00:28]} Qxb2 {[%emt 0:01:31]} 7. Ngf3 {[%emt 0:00:53]} Nc6 {[%emt 0:02:43]} 8. Nc4 {[%emt 0:09:45]} Bb4+ {[%emt 0:02:16]} 9. Kf2 {[%emt 0:01:29]} Qf6 {[%emt 0:01:30]} 10. Bh3 {[%emt 0:02:16]} d6 {[%emt 1:19:57]} 11. e5 {[%emt 0:29:01]} dxe5 {[%emt 0:00:00]} 12. Bg5 {[%emt 0:00:16]} Qg6 {[%emt 0:00:00]} 13. Bxc8 Rxc8 {[%emt 0:00:00]} 14. Qe2 Nge7 {[%emt 0:00:00]} 15. Bxe7 Nxe7 {[%emt 0:00:00]} 16. Ncxe5 Qd6 {[%emt 0:00:00]} 17. Kg2 O-O {[%emt 0:00:00]} 18. Qe4 Nd5 {[%emt 0:00:00]} 19. c4 Nf6 {[%emt 0:00:00]} 20. Qxb7 Bc3 {[%emt 0:00:00]} 21. d4 Qe6 {[%emt 0:00:00]} 22. Qc6 1-0

[Event "Silves Open 2025"]
[Site "Fissul"]
[Date "2025.03.03"]
[Round "4.26"]
[White "Almeida, Luis Eduardo dos Rei"]
[Black "De Kruif, Kees"]
[Result "1/2-1/2"]
[Annotator "NA RC COMBH"]
[ECO "B88"]
[WhiteElo "1841"]
[BlackElo "1857"]
[PlyCount "55"]
[EventDate "2025.03.03"]
[EventType "swiss"]
[EventCountry "POR"]
[SourceTitle "playchess.com"]
[Source "ChessBase"]
[SourceQuality "1"]
[TimeControl "5400+30"]

1. e4 {[%emt 0:00:03]} c5 {[%emt 0:00:07]} 2. Nc3 {[%emt 0:00:04]} Nc6 {[%emt 0:00:29]} 3. f4 {[%emt 0:00:08]} d6 {[%emt 0:00:32]} 4. Nf3 {[%emt 0:00:07]} e6 {[%emt 0:01:01]} 5. d4 {[%emt 0:01:27]} cxd4 {[%emt 0:00:15]} 6. Nxd4 {[%emt 0:00:06]} a6 {[%emt 0:00:50]} 7. Bc4 {[%emt 0:02:10]} Nf6 {[%emt 0:00:20]} 8. Bb3 {[%emt 0:02:10]} Na5 {[%emt 0:02:04]} 9. Be3 {[%emt 0:00:45]} Nxb3 {[%emt 0:00:17]} 10. Nxb3 {[%emt 0:00:10]} Be7 {[%emt 0:01:19]} 11. Qe2 {[%emt 0:06:56]} O-O {[%emt 0:01:05]} 12. g4 {[%emt 0:10:54]} b5 {[%emt 0:01:29]} 13. g5 {[%emt 0:00:15]} Nd7 {[%emt 0:00:11]} 14. a3 {[%emt 0:02:52]} Nc5 {[%emt 0:03:35]} 15. h4 {[%emt 0:13:34]} Nxb3 {[%emt 0:01:23]} 16. cxb3 {[%emt 0:00:09]} f5 {[%emt 0:04:09]} 17. Rg1 {[%emt 0:07:05]} Bb7 {[%emt 0:02:55]} 18. exf5 {[%emt 0:03:11]} exf5 {[%emt 0:04:51]} 19. O-O-O {[%emt 0:02:27]} Re8 {[%emt 0:09:49]} 20. Kb1 {[%emt 0:02:43]} Rc8 {[%emt 0:06:42]} 21. Nd5 {[%emt 0:08:57]} Bxd5 {[%emt 0:00:15]} 22. Rxd5 {[%emt 0:00:17]} Qd7 {[%emt 0:00:33]} 23. Qd3 {[%emt 0:07:17]} Bf8 {[%emt 0:00:30]} 24. Rxf5 {[%emt 0:07:58]} Rxe3 {[%emt 0:02:20]} 25. Rxf8+ {[%emt 0:00:24]} Rxf8 {[%emt 0:00:12]} 26. Qxe3 {[%emt 0:00:11]} Qf5+ {[%emt 0:00:11]} 27. Ka2 {[%emt 0:03:41]} Qxf4 {[%emt 0:00:14]} 28. Qe6+ {[%emt 0:00:17]} 1/2-1/2